Workbook

Sheet 预算调整总表
B1: 附件3-1
A2: 2022年社会保险基金收支预算调整总表 | O2: 2022年社会保险基金预算调整总表
Z3: 社预01表
B4: 江门市 | H4: 万元 | N4: 万元 | T4: 万元 | Z4: 万元
B5: 项 目 | C5: 合计 | F5: 企业职工基本养老保险基金 | I5: 城乡居民基本养老保险基金 | L5: 机关事业养老保险基金 | O5: 职工基本医疗保险基金 | R5: 居民基本医疗保险基金 | S5: 居民基本医疗保险基金 | T5: 工伤保险基金 | U5: 工伤保险基金 | V5: 生育保险基金 | X5: 失业保险基金
C6: 年初预算数 | D6: 调整数 | E6: 调整后预算数 | F6: 年初预算数 | G6: 调整数 | H6: 调整后预算数 | I6: 年初预算数 | J6: 调整数 | K6: 调整后预算数 | L6: 年初预算数 | M6: 调整数 | N6: 调整后预算数 | O6: 年初预算数 | P6: 调整数 | Q6: 调整后预算数 | R6: 年初预算数 | S6: 调整数 | T6: 调整后预算数 | U6: 年初预算数 | V6: 调整数 | W6: 调整后预算数 | X6: 年初预算数 | Y6: 调整数 | Z6: 调整后预算数
B7: 一、收入 | C7: 3,893,137.24 | D7: 482,648.36 | E7: 4,375,785.59 | F7: 2,409,837.61 | G7: 37,522.90 | H7: 2,447,360.51 | I7: 168,815.45 | J7: -1,305.03 | K7: 167,510.42 | L7: 393,531.46 | M7: 171,101.44 | N7: 564,632.90 | O7: 569,481.97 | P7: 233,285.63 | Q7: 802,767.59 | R7: 254,908.05 | S7: 0 | T7: 254,908.05 | U7: 51,588.99 | V7: 1,492.28 | W7: 53,081.27 | X7: 44,973.71 | Y7: 40,551.14 | Z7: 85,524.85
B8: 其中:1.社会保险费收入 | C8: 2,136,163.30 | D8: 281,742.24 | E8: 2,417,905.55 | F8: 1,174,966.03 | G8: -10,283.75 | H8: 1,164,682.28 | I8: 18,642.16 | J8: -548.47 | K8: 18,093.70 | L8: 263,861.29 | M8: 59,187.11 | N8: 323,048.40 | O8: 552,149.50 | P8: 233,285.63 | Q8: 785,435.13 | R8: 92,849.10 | S8: 0 | T8: 92,849.10 | U8: 14,389.09 | V8: -334.32 | W8: 14,054.77 | X8: 19,306.13 | Y8: 436.04 | Z8: 19,742.17
B9: 2.财政补贴收入 | C9: 421,209.32 | D9: 110,870.06 | E9: 532,079.38 | F9: 0 | G9: 0 | H9: 0 | I9: 142,499.90 | J9: -1,123.37 | K9: 141,376.53 | L9: 116,244.74 | M9: 111,993.43 | N9: 228,238.17 | O9: 4,542.34 | P9: 0 | Q9: 4,542.34 | R9: 157,922.34 | S9: 0 | T9: 157,922.34 | U9: 0 | V9: 0 | W9: 0 | X9: 0 | Y9: 0 | Z9: 0
B10: 3.利息收入 | C10: 39,088.04 | D10: 886.57 | E10: 39,974.60 | F10: 13,078.48 | G10: 188.01 | H10: 13,266.48 | I10: 4,650.16 | J10: 360.10 | K10: 5,010.26 | L10: 650.09 | M10: 72.31 | N10: 722.40 | O10: 12,171.25 | P10: 0 | Q10: 12,171.25 | R10: 4,135.70 | S10: 0 | T10: 4,135.70 | U10: 567.61 | V10: 60.26 | W10: 627.87 | X10: 3,834.75 | Y10: 205.89 | Z10: 4,040.64
B11: 4.委托投资收益 | C11: 11,027.86 | D11: 0 | E11: 11,027.86 | F11: 8,045.79 | G11: 0 | H11: 8,045.79 | I11: 2,982.07 | J11: 0 | K11: 2,982.07 | N11: 0
B12: 5.转移收入 | C12: 14,074.77 | D12: 1,377.59 | E12: 15,452.37 | F12: 7,575.00 | G12: 63.96 | H12: 7,638.96 | I12: 35.63 | J12: 6.70 | K12: 42.33 | L12: 6,209.56 | M12: 1,303.93 | N12: 7,513.50 | O12: 252.78 | P12: 0 | Q12: 252.78 | X12: 1.80 | Y12: 3.00 | Z12: 4.80
B13: 6.其他收入 | C13: 9,100.21 | D13: -6,336.19 | E13: 2,764.03 | F13: 8,647.80 | G13: -6,499.00 | H13: 2,148.80 | I13: 3.61 | J13: 0 | K13: 3.61 | L13: 0 | M13: 90.00 | N13: 90.00 | O13: 366.10 | P13: 0 | Q13: 366.10 | R13: 0.91 | S13: 0 | T13: 0.91 | U13: 24.55 | V13: 53.81 | W13: 78.37 | X13: 57.24 | Y13: 19.00 | Z13: 76.24
B14: 7.中央调剂资金收入 （省级专用） | C14: 0 | D14: 0 | E14: 0 | F14: 0 | G14: 0 | H14: 0
B15: 8.中央调剂基金收入 （中央专用） | C15: 0 | D15: 0 | E15: 0 | F15: 0 | G15: 0 | H15: 0
B16: 二、支出 | C16: 3,820,239.82 | D16: 276,082.07 | E16: 4,096,321.89 | F16: 2,409,837.60 | G16: -12,245.10 | H16: 2,397,592.50 | I16: 144,841.36 | J16: 120.43 | K16: 144,961.80 | L16: 396,322.65 | M16: 171,774.98 | N16: 568,097.62 | O16: 516,741.63 | P16: 13,709.65 | Q16: 530,451.28 | R16: 229,496.78 | S16: 0 | T16: 229,496.78 | U16: 60,709.00 | V16: -196.69 | W16: 60,512.31 | X16: 62,290.80 | Y16: 102,918.80 | Z16: 165,209.60
B17: 其中:1.社会保险待遇支出 | C17: 2,461,982.16 | D17: 169,151.15 | E17: 2,631,133.31 | F17: 1,174,481.65 | G17: 4,930.21 | H17: 1,179,411.86 | I17: 144,835.11 | J17: 112.43 | K17: 144,947.55 | L17: 387,368.72 | M17: 158,089.35 | N17: 545,458.06 | O17: 483,346.02 | P17: 0 | Q17: 483,346.02 | R17: 211,947.74 | S17: 0 | T17: 211,947.74 | U17: 36,200.92 | V17: 1,867.92 | W17: 38,068.84 | X17: 23,802.00 | Y17: 4,151.24 | Z17: 27,953.24
B18: 2.转移支出 | C18: 22,199.02 | D18: 986.25 | E18: 23,185.26 | F18: 21,169.37 | G18: 809.37 | H18: 21,978.73 | I18: 5.54 | J18: 8.00 | K18: 13.54 | L18: 998.27 | M18: 191.28 | N18: 1,189.55 | O18: 0 | P18: 0 | Q18: 0 | X18: 25.84 | Y18: -22.40 | Z18: 3.44
B19: 3.其他支出 | C19: 40,319.18 | D19: 55,781.36 | E19: 96,100.53 | F19: 1,873.49 | G19: -1,453.89 | H19: 419.59 | I19: 0.70 | J19: 0 | K19: 0.70 | L19: 0 | M19: 8.50 | N19: 8.50 | O19: 33,395.61 | P19: 13,709.65 | Q19: 47,105.26 | R19: 4,520.71 | S19: 0 | T19: 4,520.71 | U19: 0 | V19: 0 | W19: 0 | X19: 528.67 | Y19: 43,517.10 | Z19: 44,045.77
B20: 4.中央调剂基金支出 （中央专用） | C20: 0 | D20: 0 | E20: 0 | F20: 0 | G20: 0 | H20: 0
B21: 5.中央调剂资金支出 （省级专用） | C21: 0 | D21: 0 | E21: 0 | F21: 0 | G21: 0 | H21: 0
B22: 三、本年收支结余 | C22: 72,897.42 | D22: 206,566.27 | E22: 279,463.69 | F22: 0 | G22: 49,768.00 | H22: 49,768.00 | I22: 23,974.09 | J22: -1,425.47 | K22: 22,548.62 | L22: -2,791.19 | M22: -673.54 | N22: -3,464.73 | O22: 52,740.34 | P22: 219,575.98 | Q22: 272,316.32 | R22: 25,411.27 | S22: 0 | T22: 25,411.27 | U22: -9,120.00 | V22: 1,688.97 | W22: -7,431.04 | X22: -17,317.09 | Y22: -62,367.67 | Z22: -79,684.75
B23: 四、年末滚存结余 | C23: 1,821,128.30 | D23: 206,566.27 | E23: 2,027,694.58 | F23: 686,342.34 | G23: 49,768.00 | H23: 736,110.34 | I23: 292,695.31 | J23: -1,425.47 | K23: 291,269.84 | L23: 47,690.67 | M23: -673.54 | N23: 47,017.13 | O23: 456,957.97 | P23: 219,575.98 | Q23: 676,533.96 | R23: 221,203.82 | S23: 0 | T23: 221,203.82 | U23: 18,214.72 | V23: 1,688.97 | W23: 19,903.68 | X23: 98,023.47 | Y23: -62,367.67 | Z23: 35,655.81
Z24: 第 1 页

Sheet 企业职工基本养老保险基金收支预
B2: 2022年企业职工基本养老保险基金收支预算调整表
I3: 社预02表
B4: 江门市 | I4: 万元
B5: 项 目 | C5: 年初预算数 | D5: 调整数 | E5: 调整后预算数 | F5: 项 目 | G5: 年初预算数 | H5: 调整数 | I5: 调整后预算数
B6: 一、基本养老保险费收入 | C6: 1,174,966.03 | D6: -10,283.75 | E6: =C6+D6 -> 1,164,682.28 | F6: 一、基本养老金支出 | G6: 1,138,843.32 | H6: -659.29 | I6: =G6+H6 -> 1,138,184.03
B7: 二、财政补贴收入 | C7: 0 | D7: 0 | E7: 0 | F7: 其中:离休金支出 | G7: 842.20 | H7: -75.01 | I7: 767.19
B8: 其中:地方财政补贴 | C8: 0 | D8: 0 | E8: 0 | F8: 二、医疗补助金支出 | G8: 0 | H8: 0 | I8: 0
B9: 三、利息收入 | C9: 13,078.48 | D9: 188.01 | E9: 13,266.49 | F9: 三、丧葬补助金和抚恤金支出 | G9: 35,638.33 | H9: 5,589.50 | I9: 41,227.83
B10: 四、委托投资收益 | C10: 8,045.79 | D10: 0 | E10: 8,045.79 | F10: 四、转移支出 | G10: 21,169.37 | H10: 809.37 | I10: 21,978.74
B11: 五、转移收入 | C11: 7,575.00 | D11: 63.96 | E11: 7,638.96 | F11: 五、其他支出 | G11: 1,873.49 | H11: -1,453.89 | I11: 419.60
B12: 六、其他收入 | C12: 8,647.80 | D12: -6,499.00 | E12: 2,148.80 | F12: × | G12: × | H12: × | I12: ×
B13: 其中:滞纳金 | C13: 1,155.80 | D13: 308.67 | E13: 1,464.47 | F13: × | G13: × | H13: × | I13: ×
B14: 七、本年收入小计 | C14: 1,212,313.10 | D14: =D6+D7+D9+D10+D11+D12 -> -16,530.78 | E14: 1,195,782.32 | F14: 六、本年支出小计 | G14: 1,197,524.51 | H14: =H6+H8+H9+H10+H11 -> 4,285.69 | I14: =G14+H14 -> 1,201,810.20
B15: 八、上级补助收入 | C15: 1,197,524.51 | D15: 54,053.68 | E15: 1,251,578.19 | F15: 七、补助下级支出 | G15: 0 | H15: 0 | I15: 0
B16: 其中:中央调剂资金收入 （省级专用） | C16: 0 | D16: 0 | E16: 0 | F16: 其中:中央调剂基金支出 （中央专用） | G16: 0 | H16: 0 | I16: 0
B17: 九、下级上解收入 | C17: 0 | D17: 0 | E17: 0 | F17: 八、上解上级支出 | G17: 1,212,313.10 | H17: -16,530.78 | I17: 1,195,782.32
B18: 其中:中央调剂基金收入 （中央专用） | C18: 0 | D18: 0 | E18: 0 | F18: 其中:中央调剂资金支出 （省级专用） | G18: 0 | H18: 0 | I18: 0
B19: 十、本年收入合计 | C19: 2,409,837.61 | D19: =D14+D15+D17 -> 37,522.90 | E19: =C19+D19 -> 2,447,360.51 | F19: 九、本年支出合计 | G19: 2,409,837.61 | H19: =H14+H15+H17 -> -12,245.09 | I19: =G19+H19 -> 2,397,592.52
B20: × | C20: × | D20: × | E20: × | F20: 十、本年收支结余 | G20: 0 | H20: =D19-H19 -> 49,767.99 | I20: =G20+H20 -> 49,767.99
B21: 十一、上年结余 | C21: 686,342.34 | D21: 0 | E21: =C21+D21 -> 686,342.34 | F21: 十一、年末滚存结余 | G21: =C21+G20 -> 686,342.34 | H21: =D21+H20 -> 49,767.99 | I21: 736,110.33
B22: 总 计 | C22: =C19+C21 -> 3,096,179.95 | D22: =D19+D21 -> 37,522.90 | E22: =C22+D22 -> 3,133,702.85 | F22: 总 计 | G22: =G19+G21 -> 3,096,179.95 | H22: =H19+H21 -> 37,522.90 | I22: 3,133,702.85
I23: 第 2 页

Sheet 城乡居民基本养老保险基金收支预
A1: 2022年城乡居民基本养老保险基金收支预算调整表
H2: 社预03表
A3: 江门市 | H3: 万元
A4: 项 目 | B4: 年初预算数 | C4: 调整数 | D4: 调整后预算数 | E4: 项 目 | F4: 年初预算数 | G4: 调整数 | H4: 调整后预算数
A5: 一、个人缴费收入 | B5: 18,642.16 | C5: -548.47 | D5: =B5+C5 -> 18,093.69 | E5: 一、基础养老金支出 | F5: 135,211.42 | G5: 0 | H5: =F5+G5 -> 135,211.42
A6: 其中:财政为困难人员代缴收入 | B6: 473.38 | C6: -1.38 | D6: 472.00 | E6: 二、个人账户养老金支出 | F6: 7,465.25 | G6: 112.43 | H6: =F6+G6 -> 7,577.68
A7: 二、财政补贴收入 | B7: 142,499.90 | C7: -1,123.37 | D7: 141,376.53 | E7: 三、丧葬补助金支出 | F7: 2,158.45 | G7: 0 | H7: =F7+G7 -> 2,158.45
A8: 其中:财政对基础养老金的补贴 | B8: 136,973.46 | C8: -1,123.37 | D8: 135,850.09 | E8: 四、转移支出 | F8: 5.54 | G8: 8.00 | H8: =F8+G8 -> 13.54
A9: 财政对个人缴费的补贴 | B9: 3,368.01 | C9: 0 | D9: 3,368.01 | E9: 五、其他支出 | F9: 0.70 | G9: 0 | H9: =F9+G9 -> 0.70
A10: 三、集体补助收入 | B10: 1.92 | C10: 0 | D10: 1.92 | E10: × | F10: × | G10: × | H10: ×
A11: 四、利息收入 | B11: 4,650.16 | C11: 360.10 | D11: 5,010.26 | E11: × | F11: × | G11: × | H11: ×
A12: 五、委托投资收益 | B12: 2,982.07 | C12: 0 | D12: 2,982.07 | E12: × | F12: × | G12: × | H12: ×
A13: 六、转移收入 | B13: 35.63 | C13: 6.70 | D13: 42.33 | E13: × | F13: × | G13: × | H13: ×
A14: 七、其他收入 | B14: 3.61 | C14: 0 | D14: 3.61 | E14: × | F14: × | G14: × | H14: ×
A15: 八、本年收入小计 | B15: 168,815.45 | C15: =C5+C7+C10+C11+C12+C13+C14 -> -1,305.04 | D15: 167,510.41 | E15: 六、本年支出小计 | F15: 144,841.36 | G15: =G5+G6+G7+G8+G9 -> 120.43 | H15: =F15+G15 -> 144,961.79
A16: 九、上级补助收入 | B16: 0 | C16: 0 | D16: 0 | E16: 七、补助下级支出 | F16: 0 | G16: 0 | H16: 0
A17: 十、下级上解收入 | B17: 0 | C17: 0 | D17: 0 | E17: 八、上解上级支出 | F17: 0 | G17: 0 | H17: 0
A18: 十一、本年收入合计 | B18: 168,815.45 | C18: =C15+C16+C17 -> -1,305.04 | D18: 167,510.41 | E18: 九、本年支出合计 | F18: 144,841.36 | G18: =G15+G16+G17 -> 120.43 | H18: 144,961.79
A19: × | B19: × | C19: × | D19: × | E19: 十、本年收支结余 | F19: 23,974.09 | G19: =C18-G18 -> -1,425.47 | H19: 22,548.62
A20: 十二、上年结余 | B20: 268,721.22 | C20: 0 | D20: =B20+C20 -> 268,721.22 | E20: 十一、年末滚存结余 | F20: =B20+F19 -> 292,695.31 | G20: =C20+G19 -> -1,425.47 | H20: 291,269.84
A21: 总 计 | B21: =B18+B20 -> 437,536.67 | C21: =C18+C20 -> -1,305.04 | D21: =B21+C21 -> 436,231.63 | E21: 总 计 | F21: =F18+F20 -> 437,536.67 | G21: =G18+G20 -> -1,305.04 | H21: 436,231.63
H22: 第 3 页

Sheet 机关事业单位基本养老保险基金收
A1: 2022年机关事业单位基本养老保险基金收支预算调整表
H2: 社预04表
A3: 江门市 | H3: 单位：元
A4: 项 目 | B4: 年初预算数 | C4: 调整数 | D4: 调整后预算数 | E4: 项目 | F4: 年初预算数 | G4: 调整数 | H4: 调整后预算数
A5: 一、基本养老保险费收入 | B5: 263,861.29 | C5: 59,187.11 | D5: =B5+C5 -> 323,048.40 | E5: 一、基本养老金支出 | F5: 387,368.72 | G5: 158,089.35 | H5: =F5+G5 -> 545,458.07
A6: 二、财政补贴收入 | B6: 116,244.74 | C6: 111,993.43 | D6: 228,238.17 | E6: 二、转移支出 | F6: 998.27 | G6: 191.28 | H6: =F6+G6 -> 1,189.55
A7: 其中：地方财政补贴 | B7: 116,244.74 | C7: 111,993.43 | D7: 228,238.17 | E7: 三、其他支出 | F7: 0.00 | G7: 8.50 | H7: =F7+G7 -> 8.50
A8: 三、利息收入 | B8: 650.09 | C8: 72.31 | D8: 722.40 | E8: × | F8: × | G8: × | H8: ×
A9: 四、转移收入 | B9: 6,209.56 | C9: 1,303.93 | D9: 7,513.49 | E9: × | F9: × | G9: × | H9: ×
A10: 五、其他收入 | B10: 0.00 | C10: 90.00 | D10: 90.00 | E10: × | F10: × | G10: × | H10: ×
A11: 其中：滞纳金 | B11: 0.00 | C11: 0 | D11: 0.00 | E11: × | F11: × | G11: × | H11: ×
A12: 六、本年收入小计 | B12: 386,965.68 | C12: =C5+C6+C8+C9+C10 -> 172,646.78 | D12: 559,612.46 | E12: 四、本年支出小计 | F12: 388,366.99 | G12: =G5+G6+G7 -> 158,289.13 | H12: =F12+G12 -> 546,656.12
A13: 七、上级补助收入 | B13: 6,565.78 | C13: -4,635.31 | D13: 1,930.47 | E13: 五、补助下级支出 | F13: 0.00 | G13: 0 | H13: 0.00
A14: 八、下级上解收入 | B14: 0.00 | C14: 3,089.97 | D14: 3,089.97 | E14: 六、上解上级支出 | F14: 7,955.66 | G14: 13,485.85 | H14: 21,441.51
A15: 九、本年收入合计 | B15: 393,531.46 | C15: =C12+C13+C14 -> 171,101.44 | D15: 564,632.90 | E15: 七、本年支出合计 | F15: 396,322.65 | G15: =G12+G13+G14 -> 171,774.98 | H15: 568,097.63
A16: × | B16: × | C16: × | D16: × | E16: 八、本年收支结余 | F16: -2,791.19 | G16: =C15-G15 -> -673.54 | H16: -3,464.73
A17: 十、上年结余 | B17: 50,481.86 | C17: 0 | D17: =B17+C17 -> 50,481.86 | E17: 九、年末滚存结余 | F17: =B17+F16 -> 47,690.67 | G17: =C17+G16 -> -673.54 | H17: 47,017.13
A18: 总 计 | B18: =B15+B17 -> 444,013.32 | C18: =C15+C17 -> 171,101.44 | D18: =B18+C18 -> 615,114.76 | E18: 总 计 | F18: =F15+F17 -> 444,013.32 | G18: =G15+G17 -> 171,101.44 | H18: 615,114.76
H19: 第 4 页

Sheet 职工基本医疗保险基金收支预算调
B1: 2022年职工基本医疗保险(含生育保险)基金收支预算调整表
K2: 社预05表
B3: 江门市 | K3: 单位：元
B4: 项 目 | C4: 年初预算数 | F4: 调整数 | I4: 调整后预算数
C5: 小计 | D5: 基本医疗保险统筹基金（含单建统筹） | E5: 基本医疗保险 个人账户基金 | F5: 小计 | G5: 基本医疗保险统筹基金（含单建统筹） | H5: 基本医疗保险 个人账户基金 | I5: 小计 | J5: 基本医疗保险统筹基金（含单建统筹） | K5: 基本医疗保险 个人账户基金
B6: 一、基本医疗保险费收入 | C6: =D6+E6 -> 552,149.50 | D6: 363,528.03 | E6: 188,621.47 | F6: =G6+H6 -> 233,285.63 | G6: =G7+G8 -> 233,285.63 | H6: =H7+H8 -> 0 | I6: =J6+K6 -> 785,435.13 | J6: =D6+G6 -> 596,813.66 | K6: 188,621.47
B7: 其中：单位缴费 | C7: =D7+E7 -> 426,552.83 | D7: 363,528.03 | E7: 63,024.80 | F7: =G7+H7 -> 233,285.63 | G7: 233,285.63 | H7: 0 | I7: =J7+K7 -> 659,838.46 | J7: 596,813.66 | K7: 63,024.80
B8: 个人缴费 | C8: =D8+E8 -> 125,596.67 | D8: 0 | E8: 125,596.67 | F8: =G8+H8 -> 0 | G8: 0 | H8: 0 | I8: =J8+K8 -> 125,596.67 | J8: 0 | K8: 125,596.67
B9: 二、财政补贴收入 | C9: =D9 -> 4,542.34 | D9: 4,542.34 | E9: × | F9: =G9 -> 0 | G9: 0 | H9: × | I9: =J9 -> 4,542.34 | J9: =D9+G9 -> 4,542.34 | K9: ×
B10: 三、利息收入 | C10: =D10+E10 -> 12,171.25 | D10: 12,171.25 | E10: 0 | F10: =G10+H10 -> 0 | G10: 0 | H10: 0 | I10: =J10+K10 -> 12,171.25 | J10: =D10+G10 -> 12,171.25 | K10: =E10+H10 -> 0
B11: 四、转移收入 | C11: =E11 -> 252.78 | D11: × | E11: 252.78 | F11: =H11 -> 0 | G11: × | H11: 0 | I11: =K11 -> 252.78 | J11: × | K11: =E11+H11 -> 252.78
B12: 五、其他收入 | C12: =D12+E12 -> 366.10 | D12: 366.10 | E12: 0 | F12: =G12+H12 -> 0 | G12: 0 | H12: 0 | I12: =J12+K12 -> 366.10 | J12: =D12+G12 -> 366.10 | K12: =E12+H12 -> 0
B13: 其中:滞纳金 | C13: =D13 -> 361.23 | D13: 361.23 | E13: × | F13: =G13 -> 0 | G13: 0 | H13: × | I13: =J13 -> 361.23 | J13: =D13+G13 -> 361.23 | K13: 0
B14: 六、本年收入小计 | C14: =D14+E14 -> 569,481.97 | D14: 380,607.72 | E14: 188,874.25 | F14: =G14+H14 -> 233,285.63 | G14: =G6+G9+G10+G12 -> 233,285.63 | H14: =H6+H10+H11+H12 -> 0 | I14: =J14+K14 -> 802,767.60 | J14: =D14+G14 -> 613,893.35 | K14: =E14+H14 -> 188,874.25
B15: 七、上级补助收入 | C15: 0 | D15: 0 | E15: 0 | F15: 0 | G15: 0 | H15: 0 | I15: 0 | J15: =D15+G15 -> 0 | K15: =E15+H15 -> 0
B16: 八、下级上解收入 | C16: 0 | D16: 0 | E16: 0 | F16: 0 | G16: 0 | H16: 0 | I16: 0 | J16: =D16+G16 -> 0 | K16: =E16+H16 -> 0
B17: 九、本年收入合计 | C17: 569,481.97 | D17: 380,607.72 | E17: 188,874.25 | F17: 233,285.63 | G17: =G14+G15+G16 -> 233,285.63 | H17: =H14+H15+H16 -> 0 | I17: 802,767.60 | J17: =SUM(J14:J16) -> 613,893.35 | K17: =SUM(K14:K16) -> 188,874.25
B18: 十、上年结余 | C18: 404,217.63 | D18: 390,463.02 | E18: 13,754.61 | F18: 0 | G18: 0 | H18: 0 | I18: 404,217.63 | J18: =D18+G18 -> 390,463.02 | K18: =E18+H18 -> 13,754.61
B19: 总 计 | C19: 973,699.60 | D19: =D17+D18 -> 771,070.74 | E19: =E17+E18 -> 202,628.86 | F19: 233,285.63 | G19: =G17+G18 -> 233,285.63 | H19: =H17+H18 -> 0 | I19: 1,206,985.23 | J19: =J17+J18 -> 1,004,356.37 | K19: =K17+K18 -> 202,628.86
B20: 项 目 | C20: 年初预算数 | F20: 调整数 | I20: 调整后预算数
C21: 小计 | D21: 基本医疗保险统筹基金（含单建统筹） | E21: 基本医疗保险 个人账户基金 | F21: 小计 | G21: 基本医疗保险统筹基金（含单建统筹） | H21: 基本医疗保险 个人账户基金 | I21: 小计 | J21: 基本医疗保险统筹基金（含单建统筹） | K21: 基本医疗保险 个人账户基金
B22: 一、基本医疗保险待遇支出 | C22: =D22+E22 -> 483,346.02 | D22: 302,916.07 | E22: 180,429.95 | F22: =G22+H22 -> 0 | G22: 0 | H22: 0 | I22: =J22+K22 -> 483,346.02 | J22: =D22+G22 -> 302,916.07 | K22: 180,429.95
B23: 其中:1.住院费用支出 | C23: =D23+E23 -> 177,600.54 | D23: 169,071.13 | E23: 8,529.41 | F23: =G23+H23 -> 0 | G23: 0 | H23: 0 | I23: =J23+K23 -> 177,600.54 | J23: 169,071.13 | K23: 8,529.41
B24: 2.门诊费用支出 | C24: =D24+E24 -> 281,222.69 | D24: 109,322.15 | E24: 171,900.54 | F24: =G24+H24 -> 0 | G24: 0 | H24: 0 | I24: =J24+K24 -> 281,222.69 | J24: 109,322.15 | K24: 171,900.54
B25: 3.生育医疗费用支出 | C25: =D25 -> 7,873.99 | D25: 7,873.99 | E25: 0 | F25: =G25 -> 0 | G25: 0 | H25: 0 | I25: =J25 -> 7,873.99 | J25: 7,873.99 | K25: 0
B26: 4.生育津贴支出 | C26: =D26 -> 16,648.81 | D26: 16,648.81 | E26: × | F26: =G26 -> 0 | G26: 0 | H26: × | I26: =J26 -> 16,648.81 | J26: =D26+G26 -> 16,648.81 | K26: ×
B27: 二、转移支出 | C27: =E27 -> 0 | D27: × | E27: 0 | F27: =H27 -> 0 | G27: × | H27: 0 | I27: =K27 -> 0 | J27: × | K27: =E27+H27 -> 0
B28: 三、其他支出 | C28: =D28+E28 -> 33,395.61 | D28: 33,395.61 | E28: 0 | F28: =G28+H28 -> 13,709.65 | G28: 13,709.65 | H28: 0 | I28: =J28+K28 -> 47,105.26 | J28: =D28+G28 -> 47,105.26 | K28: =E28+H28 -> 0
B29: 四、本年支出小计 | C29: 516,741.63 | D29: 336,311.68 | E29: 180,429.95 | F29: 13,709.65 | G29: =G22+G28 -> 13,709.65 | H29: =H22+H27+H28 -> 0 | I29: 530,451.28 | J29: =D29+G29 -> 350,021.33 | K29: =E29+H29 -> 180,429.95
B30: 五、补助下级支出 | C30: 0 | D30: 0 | E30: 0 | F30: 0 | G30: 0 | H30: 0 | I30: 0 | J30: =D30+G30 -> 0 | K30: =E30+H30 -> 0
B31: 六、上解上级支出 | C31: 0 | D31: 0 | E31: 0 | F31: 0 | G31: 0 | H31: 0 | I31: 0 | J31: =D31+G31 -> 0 | K31: =E31+H31 -> 0
B32: 七、本年支出合计 | C32: 516,741.63 | D32: 336,311.68 | E32: 180,429.95 | F32: 13,709.65 | G32: =G29+G30+G31 -> 13,709.65 | H32: =H29+H30+H31 -> 0 | I32: 530,451.28 | J32: =SUM(J29:J31) -> 350,021.33 | K32: =SUM(K29:K31) -> 180,429.95
B33: 八、本年收支结余 | C33: =D33+E33 -> 52,740.34 | D33: 44,296.04 | E33: 8,444.30 | F33: 219,575.98 | G33: =G17-G32 -> 219,575.98 | H33: =H17-H32 -> 0 | I33: 272,316.32 | J33: =D33+G33 -> 263,872.02 | K33: =E33+H33 -> 8,444.30
B34: 九、年末滚存结余 | C34: 456,957.97 | D34: =D18+D33 -> 434,759.06 | E34: =E18+E33 -> 22,198.91 | F34: 219,575.98 | G34: =G18+G33 -> 219,575.98 | H34: =H18+H33 -> 0 | I34: 676,533.95 | J34: =D34+G34 -> 654,335.04 | K34: =E34+H34 -> 22,198.91
B35: 总 计 | C35: 973,699.60 | D35: =D32+D34 -> 771,070.74 | E35: =E32+E34 -> 202,628.86 | F35: 233,285.63 | G35: =G32+G34 -> 233,285.63 | H35: =H32+H34 -> 0 | I35: 1,206,985.23 | J35: =J32+J34 -> 1,004,356.37 | K35: =K32+K34 -> 202,628.86
K36: 第 5 页

Sheet 城乡居民基本医疗保险基金预算调
A1: 2022年城乡居民基本医疗保险基金收支预算调整表
H2: 社预06表
A3: 江门市 | H3: 万元
A4: 项 目 | B4: 年初预算数 | C4: 调整数 | D4: 调整后预算数 | E4: 项 目 | F4: 年初预算数 | G4: 调整数 | H4: 调整后预算数
A5: 一、基本医疗保险费收入 | B5: 92,849.10 | C5: 0 | D5: =B5+C5 -> 92,849.10 | E5: 一、基本医疗保险待遇支出 | F5: 211,947.74 | G5: 0 | H5: =F5+G5 -> 211,947.74
A6: 其中：集体扶持收入 | B6: 0 | C6: 0 | D6: 0 | E6: 其中：住院费用支出 | F6: 163,975.19 | G6: 0 | H6: =F6+G6 -> 163,975.19
A7: 城乡医疗救助资助收入 | B7: 0 | C7: 0 | D7: 0 | E7: 门诊费用支出 | F7: 47,972.55 | G7: 0 | H7: =F7+G7 -> 47,972.55
A8: 财政为困难人员代缴收入 | B8: 6,401.10 | C8: 0 | D8: 6,401.10 | E8: 二、大病保险支出 | F8: 13,028.33 | G8: 0 | H8: =F8+G8 -> 13,028.33
A9: 二、财政补贴收入 | B9: 157,922.34 | C9: 0 | D9: 157,922.34 | E9: 三、其他支出 | F9: 4,520.71 | G9: 0 | H9: =F9+G9 -> 4,520.71
A10: 其中：按规定标准补助收入 | B10: 150,632.85 | C10: 0 | D10: 150,632.85 | E10: × | F10: × | G10: × | H10: ×
A11: 三、利息收入 | B11: 4,135.70 | C11: 0 | D11: 4,135.70 | E11: × | F11: × | G11: × | H11: ×
A12: 四、其他收入 | B12: 0.91 | C12: 0 | D12: 0.91 | E12: × | F12: × | G12: × | H12: ×
A13: 五、本年收入小计 | B13: 254,908.05 | C13: =C5+C9+C11+C12 -> 0 | D13: 254,908.05 | E13: 四、本年支出小计 | F13: 229,496.78 | G13: =G5+G8+G9 -> 0 | H13: =F13+G13 -> 229,496.78
A14: 六、上级补助收入 | B14: 0 | C14: 0 | D14: 0 | E14: 五、补助下级支出 | F14: 0 | G14: 0 | H14: 0
A15: 七、下级上解收入 | B15: 0 | C15: 0 | D15: 0 | E15: 六、上解上级支出 | F15: 0 | G15: 0 | H15: 0
A16: 八、本年收入合计 | B16: 254,908.05 | C16: =C13+C14+C15 -> 0 | D16: 254,908.05 | E16: 七、本年支出合计 | F16: 229,496.78 | G16: =G13+G14+G15 -> 0 | H16: 229,496.78
A17: × | B17: × | C17: × | D17: × | E17: 八、本年收支结余 | F17: 25,411.27 | G17: =C16-G16 -> 0 | H17: 25,411.27
A18: 九、上年结余 | B18: 195,792.55 | C18: 0 | D18: =B18+C18 -> 195,792.55 | E18: 九、年末滚存结余 | F18: =B18+F17 -> 221,203.82 | G18: =C18+G17 -> 0 | H18: 221,203.82
A19: 总 计 | B19: =B16+B18 -> 450,700.60 | C19: =C16+C18 -> 0 | D19: =D16+D18 -> 450,700.60 | E19: 总 计 | F19: =F16+F18 -> 450,700.60 | G19: =G16+G18 -> 0 | H19: 450,700.60
H20: 第 6 页

Sheet 工伤保险基金收支预算调整表
B1: 2022年工伤保险基金收支预算调整表
I2: 社预07表
B3: 江门市 | I3: 万元
B4: 项 目 | C4: 年初预算数 | D4: 调整数 | E4: 调整后预算数 | F4: 项 目 | G4: 年初预算数 | H4: 调整数 | I4: 调整后预算数
B5: 一、工伤保险费收入 | C5: 14,389.09 | D5: -334.32 | E5: =C5+D5 -> 14,054.77 | F5: 一、工伤保险待遇支出 | G5: 36,200.92 | H5: 1,867.92 | I5: =G5+H5 -> 38,068.84
B6: 其中：职业伤害保障费收入（试点） | C6: 0 | D6: 0 | E6: 0 | F6: 其中：职业伤害保障待遇支出（试点） | G6: 937.75 | H6: -478.18 | I6: 459.57
B7: 工伤保险费-公务员工伤保险费收入 | C7: 615.87 | D7: 0 | E7: 615.87 | F7: 二、劳动能力鉴定支出 | G7: 206.82 | H7: 0 | I7: 206.82
B8: 二、财政补贴收入 | C8: 0 | D8: 0 | E8: 0 | F8: 其中：职业伤害保障劳动能力鉴定支出（试点） | G8: 10.36 | H8: 0 | I8: 10.36
B9: 三、利息收入 | C9: 567.61 | D9: 60.26 | E9: 627.87 | F9: 三、工伤预防费用支出 | G9: 200.00 | H9: -40.00 | I9: 160.00
B10: 四、其他收入 | C10: 24.55 | D10: 53.81 | E10: 78.36 | F10: 四、其他支出（含职业伤害保障委托承办服务费） | G10: 0 | H10: 0 | I10: 0
B11: 其中：滞纳金 | C11: 24.55 | D11: 12.96 | E11: 37.51 | F11: × | G11: × | H11: × | I11: ×
B12: 五、本年收入小计 | C12: 14,981.25 | D12: =D5+D8+D9+D10 -> -220.25 | E12: =E5+E8+E9+E10 -> 14,761.00 | F12: 五、本年支出小计 | G12: 36,607.74 | H12: =H5+H7+H9+H10 -> 1,827.92 | I12: =I5+I7+I9+I10 -> 38,435.66
B13: 六、上级补助收入 | C13: 36,607.74 | D13: 1,712.53 | E13: =C13+D13 -> 38,320.27 | F13: 六、补助下级支出 | G13: 0 | H13: 0 | I13: =G13+H13 -> 0
B14: 七、下级上解收入 | C14: 0 | D14: 0 | E14: =C14+D14 -> 0 | F14: 七、上解上级支出 | G14: 24,101.26 | H14: -2,024.61 | I14: =G14+H14 -> 22,076.65
B15: 八、本年收入合计 | C15: 51,588.99 | D15: =D12+D13+D14 -> 1,492.28 | E15: =E12+E13+E14 -> 53,081.27 | F15: 八、本年支出合计 | G15: 60,709.00 | H15: =H12+H13+H14 -> -196.69 | I15: =I12+I13+I14 -> 60,512.31
B16: × | C16: × | D16: × | E16: × | F16: 九、本年收支结余 | G16: -9,120.00 | H16: =D15-H15 -> 1,688.97 | I16: =E15-I15 -> -7,431.04
B17: 九、上年结余 | C17: 27,334.72 | D17: 0 | E17: =C17+D17 -> 27,334.72 | F17: 十、年末滚存结余 | G17: =C17+G16 -> 18,214.72 | H17: =D17+H16 -> 1,688.97 | I17: =E17+I16 -> 19,903.68
B18: 总 计 | C18: =C15+C17 -> 78,923.71 | D18: =D15+D17 -> 1,492.28 | E18: =E15+E17 -> 80,415.99 | F18: 总 计 | G18: =G15+G17 -> 78,923.72 | H18: =H15+H17 -> 1,492.28 | I18: =I15+I17 -> 80,415.99
I19: 第 7 页

Sheet 失业保险基金收支预算调整表
B1: 2022年失业保险基金收支预算调整表
I2: 社预08表
B3: 江门市 | I3: 万元
B4: 项 目 | C4: 年初预算数 | D4: 调整数 | E4: 调整后预算数 | F4: 项 目 | G4: 年初预算数 | H4: 调整数 | I4: 调整后预算数
B5: 一、失业保险费收入 | C5: 19,306.13 | D5: 436.04 | E5: =C5+D5 -> 19,742.17 | F5: 一、失业保险金支出 | G5: 15,913.26 | H5: 3,375.33 | I5: =G5+H5 -> 19,288.59
B6: 二、财政补贴收入 | C6: 0 | D6: 0 | E6: 0 | F6: 二、基本医疗保险费支出 | G6: 3,004.52 | H6: 2,235.17 | I6: 5,239.69
B7: 三、利息收入 | C7: 3,834.75 | D7: 205.89 | E7: 4,040.64 | F7: 三、丧葬补助金和抚恤金支出 | G7: 166.56 | H7: 41.97 | I7: 208.53
B8: 四、转移收入 | C8: 1.80 | D8: 3.00 | E8: 4.80 | F8: 四、职业培训和职业介绍补贴支出 | G8: 0.18 | H8: -0.18 | I8: 0
B9: 五、其他收入 | C9: 57.24 | D9: 19.00 | E9: 76.24 | F9: 五、其他费用支出 | G9: 4,717.48 | H9: -1,501.05 | I9: 3,216.43
B10: 其中：滞纳金 | C10: 57.24 | D10: 19.00 | E10: 76.24 | F10: 六、稳定岗位补贴支出 | G10: 8,062.79 | H10: 3,641.60 | I10: 11,704.39
B11: × | C11: × | D11: × | E11: × | F11: 七、技能提升补贴支出 | G11: 3,536.79 | H11: 1,584.70 | I11: 5,121.49
B12: × | C12: × | D12: × | E12: × | F12: 八、转移支出 | G12: 25.84 | H12: -22.40 | I12: 3.44
B13: × | C13: × | D13: × | E13: × | F13: 九、其他支出 | G13: 528.67 | H13: 43,517.10 | I13: 44,045.77
B14: 六、本年收入小计 | C14: 23,199.92 | D14: =D5+D6+D7+D8+D9 -> 663.93 | E14: =E5+E6+E7+E8+E9 -> 23,863.85 | F14: 十、本年支出小计 | G14: 35,956.09 | H14: =SUM(H5:H13) -> 52,872.24 | I14: =SUM(I5:I13) -> 88,828.33
B15: 七、上级补助收入 | C15: 21,773.80 | D15: 39,887.20 | E15: =C15+D15 -> 61,661.00 | F15: 十一、补助下级支出 | G15: 0 | H15: 0 | I15: =G15+H15 -> 0
B16: 八、下级上解收入 | C16: 0 | D16: 0 | E16: =C16+D16 -> 0 | F16: 十二、上解上级支出 | G16: 26,334.71 | H16: 50,046.56 | I16: =G16+H16 -> 76,381.27
B17: 九、本年收入合计 | C17: 44,973.72 | D17: =D14+D15+D16 -> 40,551.13 | E17: =E14+E15+E16 -> 85,524.85 | F17: 十三、本年支出合计 | G17: 62,290.80 | H17: =H14+H15+H16 -> 102,918.80 | I17: =I14+I15+I16 -> 165,209.60
B18: × | C18: × | D18: × | E18: × | F18: 十四、本年收支结余 | G18: -17,317.08 | H18: =D17-H17 -> -62,367.67 | I18: =E17-I17 -> -79,684.75
B19: 十、上年结余 | C19: 115,340.56 | D19: 0 | E19: =C19+D19 -> 115,340.56 | F19: 十五、年末滚存结余 | G19: =C19+G18 -> 98,023.48 | H19: =D19+H18 -> -62,367.67 | I19: =E19+I18 -> 35,655.81
B20: 总 计 | C20: =C17+C19 -> 160,314.28 | D20: =D17+D19 -> 40,551.13 | E20: =E17+E19 -> 200,865.41 | F20: 总 计 | G20: =G17+G19 -> 160,314.28 | H20: =H17+H19 -> 40,551.13 | I20: =I17+I19 -> 200,865.41
I21: 第 8 页

Sheet 基本养老基础资料调整表
A1: 2022年基本养老保险基础资料预算调整表
A2: 江门市 | J2: 社预附01表
A3: 项 目 | B3: 单位 | C3: 年初预算数 | D3: 调整数 | E3: 调整后预算数 | F3: 项 目 | G3: 单位 | H3: 年初预算数 | I3: 调整数 | J3: 调整后预算数
A4: 一、企业职工基本养老保险 | B4: × | C4: × | D4: × | E4: × | F4: (2)本年补缴以前年度欠费 | G4: 元 | H4: 22,161,854.72 | I4: -2,206,283.37 | J4: 19,955,571.35
A5: (一)参保人数 | B5: 人 | C5: 1,470,068.00 | D5: 55,440.00 | E5: 1,525,508.00 | F5: (3)新增欠费 | G5: 元 | H5: 69,048,373.17 | I5: 42,825,226.74 | J5: 111,873,599.91
A6: 1.在职职工 | B6: 人 | C6: 1,085,782.00 | D6: 51,519.00 | E6: 1,137,301.00 | F6: (4)年末累计欠费 | G6: 元 | H6: 745,884,219.93 | I6: 45,031,510.11 | J6: 790,915,730.04
A7: 其中:个人身份参保 | B7: 人 | C7: 143,839.00 | D7: -16,504.00 | E7: 127,335.00 | F7: 3.预缴以后年度基本养老保险费 | G7: 元 | H7: 31,114,050.00 | I7: 0 | J7: 31,114,050.00
A8: 2.离休人员 | B8: 人 | C8: 137.00 | D8: -1.00 | E8: 136.00 | F8: 4.一次性补缴以前年度基本养老保险费 | G8: 元 | H8: 19,907,672.00 | I8: 0 | J8: 19,907,672.00
A9: 3.退休退职人员 | B9: 人 | C9: 384,149.00 | D9: 3,922.00 | E9: 388,071.00 | F9: 二、城乡居民基本养老保险 | G9: × | H9: × | I9: × | J9: ×
A10: (1)当年新增退休退职人员 | B10: 人 | C10: 23,525.00 | D10: -768.00 | E10: 22,757.00 | F10: (一)16－59周岁参保缴费人数 | G10: 人 | H10: 566,528.00 | I10: -2,100.00 | J10: 564,428.00
A11: (2)当年死亡退休退职人员 | B11: 人 | C11: 5,784.00 | D11: 38.00 | E11: 5,822.00 | F11: (二)实际领取待遇人员 | G11: 人 | H11: 554,018.00 | I11: 0 | J11: 554,018.00
A12: (二)缴费人数 | B12: 人 | C12: 1,028,653.00 | D12: 58,559.00 | E12: 1,087,212.00 | F12: (三)人均缴费水平 | G12: 元/年 | H12: 329.06 | I12: × | J12: 320.57
A13: 其中:个人身份参保 | B13: 人 | C13: 141,629.00 | D13: -21,846.00 | E13: 119,783.00 | F13: (四)人均财政对缴费补贴水平 | G13: 元/年 | H13: 59.45 | I13: × | J13: 59.67
A14: (三)缴费基数总额 | B14: 元 | C14: 51,393,446,332.10 | D14: 5,417,283,597.33 | E14: 56,810,729,929.43 | F14: 三、机关事业单位基本养老保险 | G14: × | H14: × | I14: × | J14: ×
A15: 其中:个人身份缴费基数总额 | B15: 元 | C15: 7,823,573,455.37 | D15: -691,307,326.47 | E15: 7,132,266,128.90 | F15: (一)参保人数 | G15: 人 | H15: 143,176.00 | I15: -304.00 | J15: 142,872.00
A16: (四)缴费费率 | B16: % | C16: 22.85 | D16: × | E16: 20.57 | F16: 1.在职职工 | G16: 人 | H16: 96,367.00 | I16: -554.00 | J16: 95,813.00
A17: 1.单位缴费费率 | B17: % | C17: 16.00 | D17: -2.00 | E17: 14.00 | F17: 2.退休、退职人员 | G17: 人 | H17: 46,809.00 | I17: 250.00 | J17: 47,059.00
A18: 2.职工个人缴费费率 | B18: % | C18: 8.00 | D18: 0 | E18: 8.00 | F18: (二)缴费人数 | G18: 人 | H18: 93,894.00 | I18: -564.00 | J18: 93,330.00
A19: 3.以个人身份参保缴费费率 | B19: % | C19: 20.00 | D19: 0 | E19: 20.00 | F19: (三)缴费基数总额 | G19: × | H19: × | I19: × | J19: ×
A20: (五)人均缴费工资基数 | B20: 元 | C20: 49,961.89 | D20: × | E20: 52,253.59 | F20: 1.单位 | G20: 元 | H20: 9,879,225,570.12 | I20: 1,321,714,094.86 | J20: 11,200,939,664.98
A21: (六)保险费缴纳情况 | B21: × | C21: × | D21: × | E21: × | F21: 2.个人 | G21: 元 | H21: 9,879,225,570.12 | I21: 1,321,714,094.86 | J21: 11,200,939,664.98
A22: 1.缴纳当年基本养老保险费 | B22: 元/年 | C22: 11,676,476,762.65 | D22: -100,631,227.19 | E22: 11,575,845,535.46 | F22: (四)缴费费率 | G22: % | H22: 24.00 | I22: × | J22: 28.84
A23: 2.欠费情况 | B23: × | C23: × | D23: × | E23: × | F23: (五)人均缴费工资基数 | G23: 元/年 | H23: 105,216.79 | I23: × | J23: 120,014.35
A24: (1)上年末累计欠费 | B24: 元 | C24: 698,997,701.48 | D24: 0 | E24: 698,997,701.48 | F24: 四、统筹地区职工平均工资 | G24: 元/年 | H24: 85,497.00 | I24: -4,293.00 | J24: 81,204.00
J25: 第 9 页

Sheet 基本医疗保险基础资料调整表
A1: 2022年基本医疗保险基础资料预算调整表
A2: 江门市 | J2: 社预附02表
A3: 项 目 | B3: 单位 | C3: 年初预算数 | D3: 调整数 | E3: 调整后预算数 | F3: 项 目 | G3: 单位 | H3: 年初预算数 | I3: 调整数 | J3: 调整后预算数
A4: 一、职工基本医疗保险 | B4: × | C4: × | D4: × | E4: × | F4: (1)上年末累计欠费 | G4: 元 | H4: 486,320,401.20 | I4: 0 | J4: 486,320,401.20
A5: (一)参保人数 | B5: 人 | C5: 1,672,021.00 | D5: 0 | E5: 1,672,021.00 | F5: (2)本年补缴以前年度欠费 | G5: 元 | H5: 15,237,163.68 | I5: 0 | J5: 15,237,163.68
A6: 1.在职职工 | B6: 人 | C6: 1,294,919.00 | D6: 0 | E6: 1,294,919.00 | F6: (3)本年新增欠费 | G6: 元 | H6: 58,992,869.48 | I6: 0 | J6: 58,992,869.48
A7: 2.退休人员 | B7: 人 | C7: 377,102.00 | D7: 0 | E7: 377,102.00 | F7: (4)年末累计欠费 | G7: 元 | H7: 530,076,107.00 | I7: 0 | J7: 530,076,107.00
A8: (二)缴费人数 | B8: 人 | C8: 1,516,628.00 | D8: 0 | E8: 1,516,628.00 | F8: 3.本年预缴以后年度基本医疗保险费 | G8: 元 | H8: 45,018,098.83 | I8: 0 | J8: 45,018,098.83
A9: (三)缴费基数总额 | B9: × | C9: × | D9: × | E9: × | F9: 4.一次性补缴以前年度基本医疗保险费 | G9: 元 | H9: 0 | I9: 0 | J9: 0
A10: 1.单位 | B10: 元 | C10: 76,389,011,054.18 | D10: 0 | E10: 76,389,011,054.18 | F10: 二、城乡居民基本医疗保险 | G10: × | H10: × | I10: × | J10: ×
A11: 2.个人 | B11: 元 | C11: 59,842,276,070.54 | D11: 0 | E11: 59,842,276,070.54 | F11: (一)参保缴费年末人数 | G11: 人 | H11: 2,469,391.00 | I11: 0 | J11: 2,469,391.00
A12: (四)缴费费率 | B12: % | C12: 9.22 | D12: × | E12: 9.22 | F12: (二)缴费标准 | G12: 元/年 | H12: 986.00 | I12: 0 | J12: 986.00
A13: 1.单位缴费费率 | B13: % | C13: 6.00 | D13: 0 | E13: 6.00 | F13: 其中：个人缴费标准 | G13: 元/年 | H13: 376.00 | I13: 0 | J13: 376.00
A14: 2.个人缴费费率 | B14: % | C14: 2.00 | D14: 0 | E14: 2.00 | F14: 财政补贴标准 | G14: 元/年 | H14: 610.00 | I14: 0 | J14: 610.00
A15: (五)人均缴费工资基数 | B15: 元/年 | C15: 39,457.45 | D15: × | E15: 39,457.45 | F15: (三)大病保险情况 | G15: × | H15: × | I15: × | J15: ×
A16: (六)保险费缴纳情况 | B16: × | C16: × | D16: × | E16: × | F16: 1.覆盖人数 | G16: 人 | H16: 2,469,391.00 | I16: 0 | J16: 2,469,391.00
A17: 1.缴纳当年基本医疗保险费 | B17: 元 | C17: 5,461,239,732.67 | D17: 0 | E17: 5,461,239,732.67 | F17: 2.筹资标准 | G17: 元/年 | H17: 52.76 | I17: 0 | J17: 52.76
A18: 2.欠费情况 | B18: × | C18: × | D18: × | E18: × | F18: 3.人均筹资水平 | G18: 元/年 | H18: 52.76 | I18: × | J18: 52.76
J19: 第 10 页

Sheet 失业工伤基础资料调整表
A1: 2022年失业保险、工伤保险基础资料预算调整表
A2: 江门市 | J2: 社预附03表
A3: 项 目 | B3: 单位 | C3: 年初预算数 | D3: 调整数 | E3: 调整后预算数 | F3: 项 目 | G3: 单位 | H3: 年初预算数 | I3: 调整数 | J3: 调整后预算数
A4: 一、失业保险 | B4: × | C4: × | D4: × | E4: × | F4: (八)享受稳定岗位补贴企 业参加失业保险人数 | G4: 人 | H4: 697,429.00 | I4: 167,331.00 | J4: 864,760.00
A5: (一)参保人数 | B5: 人 | C5: 1,012,058 | D5: 25,899 | E5: 1,037,957 | F5: (九)享受技能提升补贴人数 | G5: 人 | H5: 9,607.00 | I5: 28,233.00 | J5: 37,840.00
A6: 其中：农民合同制工人参保人数 | B6: 人 | C6: 0 | D6: 0.00 | E6: 0 | F6: 二、工伤保险 | G6: × | H6: × | I6: × | J6: ×
A7: (二)实际缴费人数 | B7: 人 | C7: 1,012,058.00 | D7: 25,899.00 | E7: 1,037,957.00 | F7: (一)参保人数 | G7: 人 | H7: 1,059,704 | I7: 40,433 | J7: 1,100,137
A8: × | B8: × | C8: × | D8: × | E8: × | F8: 其中：职业伤害保障参保人数 | G8: 人 | H8: 0 | I8: 0 | J8: 0
A9: (三)缴费基数总额 | B9: × | C9: × | D9: × | E9: × | F9: (二)缴费人数 | G9: 人 | H9: 1,059,704.00 | I9: 40,433.00 | J9: 1,100,137.00
A10: 1.单位 | B10: 元 | C10: 31,985,496,640.53 | D10: 1,321,499,610.00 | E10: 33,306,996,250.53 | F10: (三)缴费基数总额 | G10: 元 | H10: 37,028,007,615.36 | I10: 2,378,582,025.00 | J10: 39,406,589,640.36
A11: 2.个人 | B11: 元 | C11: 31,985,496,640.53 | D11: 1,321,499,610.00 | E11: 33,306,996,250.53 | F11: (四)缴费费率 | G11: % | H11: 0.33 | I11: -0.65 | J11: 0.27
A12: (四)缴费费率 | B12: % | C12: 0.60 | D12: × | E12: 0.59 | F12: (五)人均缴费工资基数 | G12: 元/年 | H12: 34,941.84 | I12: 58,827.74 | J12: 35,819.71
A13: (五)人均缴费工资基数 | B13: 元/年 | C13: 31,604.41 | D13: × | E13: 32,088.99 | F13: (六)缴纳当年工伤保险费 | G13: 元 | H13: 143,890,927.70 | I13: -4,568,427.00 | J13: 139,322,500.70
A14: (六)全年领取失业保险金人月数 | B14: 人月 | C14: 101,077 | D14: 18,326 | E14: 119,403 | F14: 其中:按缴费基数缴纳的工伤保险费 | G14: 元 | H14: 123,630,927.70 | I14: -15,472,296.00 | J14: 108,158,631.70
A15: (七)代缴医疗保险人月数 | B15: 人月 | C15: 109,642.00 | D15: 13,462.00 | E15: 123,104.00 | F15: (七)享受工伤保险待遇全年累计人数 | G15: 人 | H15: 7,353 | I15: -345 | J15: 7,008
J16: 第 11 页
